bitfinex-derivatives/quotes_BTCF0:USTF0_20241010
["timestamp","ask_amount","ask_price","bid_price","bid_amount"]
[1728568685836,0.0004,61066.0,61065.0,0.28]
[1728568686040,0.0004,61066.0,61065.0,0.361957]
[1728568686440,0.0004,61066.0,61065.0,0.521957]
[1728568686636,0.0004,61066.0,61065.0,0.081957]
[1728568686940,0.08196,61063.0,61062.0,0.44276]
[1728568687142,0.08196,61063.0,61062.0,0.3608]
[1728568687353,0.49132,61062.0,61053.0,0.3608]
[1728568687639,0.081975,61052.0,61051.0,0.3608]
[1728568688038,1.173375,61052.0,61051.0,0.3608]
[1728568688947,0.081975,61052.0,61051.0,0.3608]
[1728568689339,1.173375,61052.0,61051.0,0.3608]
[1728568689540,1.173375,61052.0,61051.0,0.3628]
[1728568689844,1.173375,61052.0,61038.0,0.44]
[1728568689845,0.081981,61047.0,61041.0,0.442789]
[1728568690041,0.081988,61043.0,61042.0,0.081988]
[1728568690442,0.081988,61043.0,61042.0,0.13080355]
[1728568690837,0.081983,61047.0,61046.0,0.081983]
[1728568692547,0.081983,61047.0,61046.0,0.088983]
[1728568692741,0.3608,61052.0,61046.0,0.007]
[1728568692940,0.081977,61051.0,61050.0,0.081976]
[1728568693340,0.3608,61052.0,61051.0,0.081976]
[1728568693543,0.3608,61059.0,61049.0,0.44]
[1728568693746,0.3608,61059.0,61058.0,0.521967]
[1728568694056,0.442765,61059.0,61058.0,0.521967]
[1728568694254,0.3608,61059.0,61058.0,0.521967]
[1728568694549,0.081959,61064.0,61063.0,0.081959]
[1728568694745,0.0004,61066.0,61063.0,0.44]
[1728568695047,0.0004,61066.0,61065.0,0.081957]
[1728568695349,0.082356,61066.0,61065.0,0.081957]
[1728568696737,0.0004,61066.0,61063.0,0.001]
[1728568696944,0.081959,61064.0,61063.0,0.001]
[1728568697544,0.081959,61064.0,61059.0,0.50438]
[1728568697866,0.081964,61060.0,61059.0,0.5035]
[1728568698045,0.081964,61060.0,61059.0,0.585465]
[1728568698240,0.081962,61063.0,61062.0,0.081961]
[1728568698757,0.082959,61064.0,61063.0,0.08196]
[1728568699148,0.082959,61064.0,61059.0,0.082925]
[1728568699149,0.081964,61060.0,61059.0,0.082925]
[1728568699352,0.081964,61060.0,61057.0,0.3608]
[1728568699353,0.08196,61063.0,61057.0,0.3608]
[1728568699651,0.08196,61063.0,61062.0,0.081961]
[1728568700040,0.08196,61063.0,61059.0,0.44]
[1728568700237,0.08196,61063.0,61062.0,0.081961]
[1728568700436,0.11494668,61063.0,61062.0,0.081961]
[1728568701152,0.11493384,61063.0,61062.0,0.081961]
[1728568701343,0.08196,61063.0,61062.0,0.081961]
[1728568701941,0.08296,61063.0,61062.0,0.081961]
[1728568702253,0.08296,61063.0,61062.0,0.082961]
[1728568702254,0.001,61063.0,61062.0,0.082961]
[1728568703250,0.0339948,61063.0,61062.0,0.082961]
[1728568703847,0.0339948,61063.0,61062.0,0.081961]
[1728568704449,0.001,61063.0,61062.0,0.081961]
[1728568704853,0.082356,61066.0,61059.0,0.44]
[1728568705044,0.03311162,61065.0,61062.0,0.001]
[1728568705247,0.19496971,61065.0,61064.0,0.081959]
[1728568705559,0.081958,61065.0,61064.0,0.081959]
[1728568706540,0.08196,61063.0,61062.0,0.001]
[1728568707051,1.17324,61063.0,61062.0,0.001]
[1728568707252,1.17324,61063.0,61044.0,0.3608]
[1728568707253,0.081973,61053.0,61044.0,0.3608]
[1728568707452,0.3608,61063.0,61054.0,0.081972]
[1728568707749,0.3608,61063.0,61044.0,0.37920947]
[1728568707750,0.082957,61065.0,61064.0,0.081959]
[1728568708255,0.081957,61065.0,61064.0,0.081959]
[1728568708554,0.01840812,61066.0,61056.0,0.0667]
[1728568708555,0.08196,61063.0,61062.0,0.28]
[1728568708857,0.08196,61063.0,61062.0,0.361961]
[1728568709255,0.001,61065.0,61064.0,0.081959]
[1728568710845,0.08196,61063.0,61059.0,0.081965]
[1728568711040,0.081968,61058.0,61057.0,0.081968]
[1728568711445,0.081968,61058.0,61056.0,0.0667]
[1728568711446,0.081968,61057.0,61056.0,0.428669]
[1728568711748,0.081964,61061.0,61060.0,0.081964]
[1728568711949,0.081965,61060.0,61059.0,0.081965]
[1728568712450,0.0004,61066.0,61062.0,0.08196]
[1728568712451,0.08196,61063.0,61062.0,0.08196]
[1728568713442,0.0004,61066.0,61065.0,0.081957]
[1728568713756,0.082356,61066.0,61065.0,0.361957]
[1728568714454,0.0004,61066.0,61065.0,0.361957]
[1728568714658,0.082356,61066.0,61065.0,0.361957]
[1728568714848,0.084356,61066.0,61065.0,0.361957]
[1728568715657,0.084356,61066.0,61065.0,0.28]
[1728568715859,0.084357,61066.0,61065.0,0.081957]
[1728568716656,0.084357,61066.0,61062.0,0.081961]
[1728568716657,0.081961,61063.0,61062.0,0.081961]
[1728568716951,0.081966,61060.0,61059.0,0.081964]
[1728568717751,0.0024,61066.0,61057.0,0.3608]
[1728568718052,0.081965,61061.0,61060.0,0.081963]
[1728568720156,0.081965,61061.0,61060.0,0.082963]
[1728568720364,0.081965,61061.0,61060.0,0.001]
[1728568720558,0.21095127,61061.0,61060.0,0.001]
[1728568720752,0.28635318,61061.0,61060.0,0.001]
[1728568721061,0.28635318,61061.0,61060.0,0.082964]
[1728568721453,0.15736691,61061.0,61060.0,0.082964]
[1728568722059,0.28827891,61061.0,61060.0,0.082964]
[1728568722458,0.15736691,61061.0,61060.0,0.082964]
[1728568722869,0.11722504,61061.0,61060.0,0.001]
[1728568723556,0.11722504,61061.0,61060.0,0.082964]
[1728568723757,0.11722504,61061.0,61060.0,0.001]
[1728568723955,0.083965,61061.0,61060.0,0.001]
[1728568724351,0.20768254,61061.0,61060.0,0.001]
[1728568724970,0.12564223,61061.0,61050.0,0.28]
[1728568725155,0.081973,61054.0,61053.0,0.081972]
[1728568725357,0.28631637,61054.0,61053.0,0.081972]
[1728568725558,0.15529787,61054.0,61053.0,0.081972]
[1728568725767,0.28631637,61054.0,61053.0,0.081972]
[1728568725959,0.081976,61051.0,61050.0,0.10020109]
[1728568726165,0.081976,61051.0,61048.0,0.151578]
[1728568726166,0.081979,61049.0,61048.0,0.151578]
[1728568726465,0.19660116,61049.0,61048.0,0.09998416]
[1728568726761,0.15530819,61049.0,61048.0,0.09998416]
[1728568727153,0.15530819,61049.0,61048.0,0.081978]
[1728568727154,0.07332919,61049.0,61048.0,0.081978]
[1728568727466,0.11460381,61050.0,61046.0,0.3608]
[1728568727663,0.081969,61057.0,61056.0,0.081968]
[1728568729664,0.081969,61057.0,61051.0,0.28]
[1728568729967,0.081975,61052.0,61051.0,0.081976]
[1728568730155,0.081979,61050.0,61049.0,0.081977]
[1728568730460,0.081969,61056.0,61052.0,0.081973]
[1728568730461,0.081974,61053.0,61052.0,0.081973]
[1728568731865,0.442767,61058.0,61051.0,0.285]
[1728568732067,0.3608,61063.0,61062.0,0.081961]
[1728568732270,0.0004,61068.0,61065.0,0.081957]
[1728568732562,0.0004,61075.0,61071.0,0.081949]
[1728568732773,0.081925,61090.0,61077.0,0.081941]
[1728568732963,0.081927,61088.0,61086.0,0.361929]
[1728568734356,0.0024,61087.0,61086.0,0.362929]
[1728568734761,0.084328,61087.0,61086.0,0.362929]
[1728568734960,0.085328,61087.0,61086.0,0.363929]
[1728568735563,0.15980106,61087.0,61086.0,0.363929]
[1728568736066,0.29038337,61087.0,61086.0,0.363929]
[1728568736366,0.15980106,61087.0,61086.0,0.363929]
[1728568736872,0.15880106,61087.0,61086.0,0.362929]
[1728568737073,0.15780106,61087.0,61086.0,0.361929]
[1728568737460,0.07587306,61087.0,61086.0,0.361929]
[1728568737867,0.07687306,61087.0,61086.0,0.361929]
[1728568738565,0.15680106,61087.0,61086.0,0.361929]
[1728568738767,0.15680106,61087.0,61086.0,0.362929]
[1728568739470,0.23078076,61087.0,61086.0,0.362929]
[1728568740260,0.23178076,61087.0,61086.0,0.361929]
[1728568740462,0.27190729,61087.0,61078.0,0.0688]
[1728568740671,0.081938,61079.0,61078.0,0.0688]
[1728568740870,0.081938,61079.0,61075.0,0.081944]
[1728568740871,0.081942,61076.0,61075.0,0.081944]
[1728568741169,0.03434779,61076.0,61075.0,0.081944]
[1728568741670,0.03434779,61076.0,61075.0,0.442744]
[1728568741973,0.081938,61080.0,61079.0,0.081938]
[1728568742173,0.081938,61080.0,61075.0,0.3608]
[1728568742174,0.081942,61077.0,61076.0,0.081942]
[1728568742363,0.11599181,61077.0,61076.0,0.081942]
[1728568742564,0.081942,61077.0,61076.0,0.081942]
[1728568743078,0.081942,61076.0,61075.0,0.3608]
[1728568743571,0.081942,61076.0,61075.0,0.450744]
[1728568743969,0.081942,61076.0,61075.0,0.3688]
[1728568744173,0.081947,61073.0,61072.0,0.081948]
[1728568744366,0.081947,61073.0,61072.0,0.442748]
[1728568744565,0.081947,61073.0,61072.0,0.081948]
[1728568745870,0.081949,61071.0,61070.0,0.44275]
[1728568746073,0.081949,61071.0,61070.0,0.3608]
[1728568746673,0.081949,61071.0,61070.0,0.442751]
[1728568747175,0.081949,61071.0,61065.0,0.0684]
[1728568747373,0.083947,61073.0,61065.0,0.0684]
[1728568747374,0.081956,61066.0,61065.0,0.150356]
[1728568750676,0.083956,61066.0,61060.0,0.28]
[1728568750867,0.081968,61059.0,61058.0,0.081965]
[1728568751281,0.081968,61057.0,61056.0,0.0636]
[1728568751872,0.081972,61055.0,61054.0,0.081971]
[1728568753172,0.081972,61055.0,61054.0,0.084971]
[1728568753575,0.3608,61061.0,61054.0,0.003]
[1728568753775,0.3608,61061.0,61058.0,0.082964]
[1728568753776,0.081966,61059.0,61058.0,0.082964]
[1728568754373,0.081966,61059.0,61058.0,0.001]
[1728568754679,0.081969,61056.0,61055.0,0.08197]
[1728568756781,0.081969,61056.0,61055.0,0.08397]
[1728568757178,0.081969,61056.0,61055.0,0.08897]
[1728568757969,0.081969,61056.0,61055.0,0.007]
[1728568759175,0.081969,61056.0,61055.0,0.00696]
[1728568760479,0.3608,61059.0,61055.0,0.19696]
[1728568760678,0.081966,61059.0,61058.0,0.081964]
[1728568761881,0.081966,61059.0,61058.0,0.082964]
[1728568762275,0.442766,61059.0,61058.0,0.082964]
[1728568764185,0.442766,61059.0,61058.0,0.082967]
[1728568764778,0.442766,61059.0,61058.0,0.001]
[1728568765476,0.632766,61059.0,61058.0,0.001]
[1728568766685,1.124086,61059.0,61058.0,0.001]
[1728568768384,0.081976,61051.0,61050.0,0.01854557]
[1728568768580,0.0697,61058.0,61049.0,0.55164]
[1728568768780,0.081977,61050.0,61049.0,0.3608]
[1728568768981,0.081977,61050.0,61049.0,0.442779]
[1728568769180,0.08198,61048.0,61047.0,0.081981]
[1728568770292,0.3608,61054.0,61047.0,0.02937468]
[1728568770484,0.081978,61051.0,61050.0,0.081976]
[1728568771685,0.081972,61054.0,61053.0,0.081973]
[1728568771880,0.081968,61057.0,61056.0,0.081967]
[1728568772082,0.442766,61059.0,61058.0,0.271967]
[1728568772282,0.442766,61059.0,61055.0,0.27197]
[1728568772283,0.081969,61056.0,61055.0,0.27197]
[1728568773089,0.081969,61056.0,61050.0,0.007]
[1728568773090,0.081976,61051.0,61050.0,0.007]
[1728568773394,0.11495217,61051.0,61050.0,0.016]
[1728568773591,0.11495217,61051.0,61050.0,0.097977]
[1728568774095,0.11495217,61051.0,61050.0,0.088977]
[1728568774294,0.11495217,61051.0,61050.0,0.088937]
[1728568774492,0.03297617,61051.0,61050.0,0.088937]
[1728568775088,0.1963645,61058.0,61051.0,0.081976]
[1728568775287,0.1964658,61058.0,61057.0,0.081968]
[1728568775597,0.14765423,61058.0,61057.0,0.081968]
[1728568775783,0.22962123,61058.0,61057.0,0.081968]
[1728568775989,0.03315543,61058.0,61057.0,0.081968]
[1728568776190,0.22960859,61058.0,61057.0,0.081968]
[1728568776781,0.22960859,61058.0,61057.0,0.083968]
[1728568777191,0.15526649,61058.0,61057.0,0.083968]
[1728568777790,0.15526649,61058.0,61057.0,0.002]
[1728568777988,0.15526649,61058.0,61057.0,0.083968]
[1728568778191,0.11512243,61058.0,61057.0,0.083968]
[1728568778792,0.11512243,61058.0,61057.0,0.002]
[1728568778990,0.66592243,61058.0,61057.0,0.002]
[1728568779294,0.70606956,61058.0,61057.0,0.002]
[1728568780697,0.66592243,61058.0,61057.0,0.002]
[1728568781292,0.8366429,61058.0,61057.0,0.002]
[1728568781498,0.081979,61049.0,61046.0,0.09992521]
[1728568781698,0.081979,61049.0,61047.0,0.081981]
[1728568782391,0.11474073,61049.0,61047.0,0.081981]
[1728568782887,0.271979,61049.0,61048.0,0.01]
[1728568783190,1.3960823,61049.0,61037.0,0.442794]
[1728568783389,0.081991,61041.0,61040.0,0.081989]
[1728568783595,0.271991,61041.0,61031.0,0.04906545]
[1728568783802,0.082,61033.0,61027.0,0.13107345]
[1728568783994,0.082004,61031.0,61027.0,0.01792876]
[1728568784189,0.082004,61031.0,61026.0,0.19]
[1728568784399,0.082006,61030.0,61029.0,0.272006]
[1728568784597,0.082006,61030.0,61029.0,0.082006]
[1728568786595,0.082006,61030.0,61029.0,0.096006]
[1728568787493,0.083006,61030.0,61029.0,0.110006]
[1728568787690,0.083006,61030.0,61029.0,0.028]
[1728568789399,0.082019,61019.0,61018.0,0.3608]
[1728568789601,0.082014,61024.0,61017.0,0.082021]
[1728568789602,0.19,61021.0,61017.0,0.082021]
[1728568789800,0.08202,61018.0,61017.0,0.082021]
[1728568789997,0.08202,61018.0,61017.0,0.10044561]
[1728568790805,0.08202,61018.0,61010.0,0.0727]
[1728568790806,0.27202,61018.0,61010.0,0.0727]
[1728568791106,0.27203,61011.0,61010.0,0.082031]
[1728568791495,0.082032,61009.0,61008.0,0.0741]
[1728568791699,0.082032,61009.0,61008.0,0.1743315]
[1728568791901,0.082032,61009.0,61008.0,0.0922975]
[1728568792706,0.082035,61007.0,61006.0,0.3608]
[1728568793007,0.272035,61007.0,61006.0,0.3608]
[1728568793207,0.082035,61007.0,61006.0,0.082037]
[1728568794304,0.082039,61004.0,61003.0,0.1003774]
[1728568794603,0.082041,61003.0,61000.0,0.0711]
[1728568794809,0.082043,61001.0,61000.0,0.0711]
[1728568795106,0.19,61003.0,60997.0,0.082048]
[1728568795301,0.272047,60998.0,60997.0,0.082048]
[1728568795494,0.082049,60997.0,60996.0,0.10002329]
[1728568795696,0.3618,61004.0,60994.0,0.1419]
[1728568795697,0.082041,61003.0,61002.0,0.082041]
[1728568796510,0.082041,61003.0,60995.0,0.19]
[1728568796707,0.3618,61004.0,60994.0,0.0711]
[1728568796708,0.082051,60995.0,60994.0,0.0711]
[1728568796911,0.082051,60995.0,60981.0,0.3608]
[1728568796912,0.082059,60990.0,60989.0,0.082059]
[1728568797407,0.082062,60987.0,60986.0,0.3608]
[1728568797613,0.19,60987.0,60981.0,0.08207]
[1728568797907,0.19,60987.0,60979.0,0.157773]
[1728568797908,0.082071,60980.0,60979.0,0.157773]
[1728568798109,0.082071,60980.0,60979.0,0.0757]
[1728568798307,0.082071,60980.0,60974.0,0.3608]
[1728568798507,0.272078,60975.0,60974.0,0.3608]
[1728568798706,0.272078,60975.0,60974.0,0.44288]
[1728568798912,0.19,60975.0,60974.0,0.44288]
[1728568799207,0.272078,60975.0,60974.0,0.3608]
[1728568799399,0.082082,60972.0,60971.0,0.155083]
[1728568800197,0.5518,60975.0,60971.0,0.073]
[1728568800198,0.191,60975.0,60971.0,0.073]
[1728568800404,0.001,60975.0,60974.0,0.08208]
[1728568800913,0.001,60975.0,60974.0,0.09108]
[1728568800914,0.084078,60975.0,60974.0,0.09108]
[1728568801206,0.002,60975.0,60974.0,0.09108]
[1728568801800,0.084078,60975.0,60974.0,0.009]
[1728568802005,0.084078,60975.0,60953.0,0.3608]
[1728568802006,0.082096,60962.0,60961.0,0.0754]
[1728568802211,0.082102,60957.0,60956.0,0.082103]
[1728568802510,0.23102382,60957.0,60956.0,0.082103]
[1728568802710,0.12421276,60957.0,60956.0,0.082103]
[1728568803012,0.002,60975.0,60974.0,0.08608]
[1728568803310,0.002,60975.0,60974.0,0.27608]
[1728568803508,0.002,60975.0,60974.0,0.63688]
[1728568803922,0.001,60975.0,60974.0,0.63688]
[1728568804101,0.002,60975.0,60974.0,0.63788]
[1728568804300,0.002,60975.0,60974.0,0.44788]
[1728568804713,0.3608,60982.0,60981.0,0.08207]
[1728568805028,0.19,60995.0,60980.0,0.5508]
[1728568805314,0.082055,60993.0,60982.0,0.28]
[1728568805513,0.3608,60997.0,60982.0,0.28]
[1728568805711,0.082055,60993.0,60983.0,0.082067]
[1728568805907,0.082055,60993.0,60982.0,0.28]
[1728568806209,0.082055,60993.0,60991.0,0.082057]
[1728568806413,0.44285,60997.0,60986.0,0.3608]
[1728568806622,0.082051,60996.0,60995.0,0.082051]
[1728568806910,0.082051,60996.0,60987.0,0.0717]
[1728568806911,0.77184,60996.0,60987.0,0.0717]
[1728568807113,0.3608,60997.0,60986.0,0.082063]
[1728568807114,0.082062,60987.0,60986.0,0.082063]
[1728568807516,0.082058,60991.0,60990.0,0.082058]
[1728568807717,0.004,60993.0,60992.0,0.082055]
[1728568808311,0.004,60993.0,60992.0,0.362055]
[1728568808717,0.082037,61006.0,61005.0,0.082037]
[1728568808918,0.3608,61010.0,61008.0,0.082033]
[1728568809218,0.082031,61011.0,61005.0,0.28]
[1728568809519,0.082031,61011.0,61010.0,0.082031]
[1728568809817,0.08203,61012.0,61011.0,0.082029]
[1728568810007,0.082023,61016.0,61006.0,0.28]
[1728568810209,0.08202,61019.0,61008.0,0.082033]
[1728568810411,0.082028,61013.0,61012.0,0.082028]
[1728568810615,0.082022,61017.0,61016.0,0.082023]
[1728568811013,0.082022,61017.0,61010.0,0.28]
[1728568811014,0.3608,61020.0,61010.0,0.28]
[1728568811215,0.3608,61020.0,61014.0,0.082025]
[1728568811216,0.082025,61015.0,61014.0,0.082025]
[1728568811516,0.082025,61015.0,61010.0,0.28]
[1728568811517,0.3608,61020.0,61016.0,0.082022]
[1728568811717,0.3608,61020.0,61010.0,0.082031]
[1728568811914,0.014,61010.0,61008.0,0.3608]
[1728568812122,0.014,61010.0,61009.0,0.082031]
[1728568812516,0.014,61010.0,61009.0,0.362031]
[1728568812822,0.01,61013.0,61012.0,0.082028]
[1728568814217,0.014,61015.0,61014.0,0.082026]
[1728568814523,0.014,61015.0,61014.0,0.962026]
[1728568814725,0.082008,61027.0,61023.0,0.082014]
[1728568814920,0.081999,61034.0,61030.0,0.082004]
[1728568815123,0.082003,61031.0,61030.0,0.082004]
[1728568816020,0.082011,61026.0,61025.0,0.082011]
[1728568816221,0.082011,61026.0,61024.0,0.28]
[1728568816222,0.3608,61033.0,61024.0,0.28]
[1728568816423,0.082007,61028.0,61027.0,0.082007]
[1728568817224,0.28,61035.0,61023.0,0.442813]
[1728568817418,0.082003,61031.0,61023.0,0.3608]
[1728568817618,0.09201,61026.0,61025.0,0.083011]
[1728568817811,0.01,61026.0,61025.0,0.083011]
[1728568818017,0.09201,61026.0,61025.0,0.001]
[1728568818323,0.09201,61026.0,61023.0,0.3608]
[1728568818324,0.01,61026.0,61023.0,0.3608]
[1728568818522,0.082007,61028.0,61025.0,0.08201]
[1728568818826,0.082009,61027.0,61026.0,0.08201]
[1728568819523,0.08201,61026.0,61024.0,0.362012]
[1728568819726,0.012,61031.0,61023.0,0.3618]
[1728568819917,0.082012,61024.0,61023.0,0.3618]
[1728568820329,0.082012,61024.0,61023.0,0.3608]
[1728568821925,0.090012,61024.0,61023.0,0.3618]
[1728568822318,0.008,61024.0,61023.0,0.3618]
[1728568822516,0.008,61024.0,61023.0,0.723814]
[1728568822929,0.081981,61048.0,61040.0,0.08199]
[1728568823132,0.081987,61043.0,61042.0,0.28]
[1728568823328,0.081983,61047.0,61042.0,0.28]
[1728568823633,0.6408,61058.0,61042.0,0.28]
[1728568823634,0.36212,61058.0,61042.0,0.28]
[1728568823926,0.36212,61058.0,61038.0,0.28]
[1728568823927,0.081967,61058.0,61057.0,0.28]
[1728568824115,0.081967,61058.0,61048.0,0.3608]
[1728568824116,0.081973,61053.0,61048.0,0.6408]
[1728568824323,0.081968,61057.0,61048.0,0.081979]
[1728568824522,0.081977,61051.0,61048.0,0.081979]
[1728568824723,0.081963,61061.0,61051.0,0.081975]
[1728568824724,0.081972,61055.0,61051.0,0.081975]
[1728568824921,0.081972,61055.0,61054.0,0.081972]
[1728568825322,0.095967,61058.0,61056.0,0.081969]
[1728568825627,0.095967,61058.0,61057.0,0.28]
[1728568826129,0.095967,61058.0,61057.0,0.361968]
[1728568826130,0.014,61058.0,61057.0,0.361968]
[1728568827224,0.001,61058.0,61057.0,0.361968]
[1728568828228,0.007,61058.0,61057.0,0.362968]
[1728568828423,0.081957,61066.0,61057.0,0.362968]
[1728568828632,0.081957,61066.0,61065.0,0.28]
[1728568828830,0.081957,61066.0,61065.0,0.361957]
[1728568829524,0.08195,61071.0,61063.0,0.3608]
[1728568829722,0.442744,61075.0,61065.0,0.081957]
[1728568829723,0.011,61066.0,61065.0,0.081957]
[1728568829926,0.011,61066.0,61065.0,0.361957]
[1728568830238,0.011,61066.0,61065.0,0.854237]
[1728568830723,0.018,61066.0,61065.0,0.854237]
[1728568830928,0.018,61066.0,61065.0,0.362957]
[1728568831330,0.018,61066.0,61065.0,0.363957]
[1728568831527,0.516856,61081.0,61068.0,0.081953]
[1728568831725,0.081952,61069.0,61068.0,0.442753]
[1728568833028,0.091952,61069.0,61068.0,0.443753]
[1728568833527,0.091952,61069.0,61068.0,0.3618]
[1728568833731,0.091952,61069.0,61068.0,0.001]
[1728568833936,0.452752,61069.0,61068.0,0.002]
[1728568834237,0.091952,61069.0,61068.0,0.002]
[1728568834627,0.093952,61069.0,61068.0,0.002]
[1728568835027,0.081968,61057.0,61056.0,0.3608]
[1728568835424,0.081968,61057.0,61056.0,0.442769]
[1728568835840,0.081956,61066.0,61056.0,0.3608]
[1728568836034,0.4331,61068.0,61062.0,0.08196]
[1728568836035,0.081953,61068.0,61062.0,0.08196]
[1728568836338,0.081957,61066.0,61065.0,0.081956]
[1728568837634,0.084957,61066.0,61065.0,0.082956]
[1728568837849,0.084957,61066.0,61065.0,0.001]
[1728568838535,0.084957,61066.0,61056.0,0.3618]
[1728568838536,0.081968,61057.0,61056.0,0.001]
[1728568838735,0.081968,61057.0,61048.0,0.081979]
[1728568838736,0.081979,61049.0,61048.0,0.081979]
[1728568839240,0.28,61057.0,61044.0,0.3608]
[1728568839241,0.3608,61055.0,61044.0,0.3608]
[1728568839436,0.081978,61050.0,61045.0,0.081984]
[1728568839649,0.081979,61049.0,61048.0,0.081979]
[1728568840930,0.081979,61049.0,61048.0,0.001]
[1728568841136,0.081979,61049.0,61048.0,0.08298]
[1728568841531,0.082979,61049.0,61048.0,0.08298]
[1728568842137,0.081979,61049.0,61048.0,0.08298]
[1728568842331,0.082979,61049.0,61048.0,0.08298]
[1728568843248,0.082979,61049.0,61048.0,0.08198]
[1728568843436,0.084979,61049.0,61048.0,0.08198]
[1728568843633,0.085979,61049.0,61048.0,0.08198]
[1728568844148,0.001,61049.0,61048.0,1.17338]
[1728568844443,0.3608,61071.0,61062.0,0.08196]
[1728568844744,0.08196,61063.0,61062.0,0.08196]
[1728568845147,0.081956,61066.0,61065.0,0.081956]
[1728568846635,0.082956,61066.0,61065.0,0.082956]
[1728568846945,0.082956,61066.0,61065.0,0.082957]
[1728568847542,0.084956,61066.0,61065.0,0.083957]
[1728568848640,0.003,61066.0,61065.0,0.083957]
[1728568852447,0.084956,61066.0,61065.0,0.083957]
[1728568853857,0.083956,61066.0,61065.0,0.002]
[1728568854047,0.081955,61067.0,61065.0,0.002]
[1728568854248,0.002,61066.0,61065.0,0.083957]
[1728568854452,0.002,61066.0,61065.0,0.363957]
[1728568855448,0.083956,61066.0,61065.0,0.363957]
[1728568855652,0.002,61066.0,61065.0,0.363957]
[1728568856058,0.083956,61066.0,61065.0,0.363957]
[1728568856459,0.083956,61066.0,61065.0,0.273957]
[1728568858248,0.083956,61066.0,61065.0,0.083957]
[1728568860761,0.002,61066.0,61065.0,0.083957]
[1728568860948,0.002,61066.0,61065.0,0.273957]
[1728568861146,0.002,61066.0,61065.0,0.083957]
[1728568861358,0.083956,61066.0,61065.0,0.083957]
[1728568861749,0.083956,61066.0,61065.0,0.002]
[1728568862060,0.273956,61066.0,61065.0,0.001]
[1728568862359,0.083956,61066.0,61065.0,0.002]
[1728568862560,0.083956,61066.0,61065.0,0.083957]
[1728568863156,0.083956,61066.0,61065.0,0.082957]
[1728568863347,0.083956,61066.0,61065.0,0.083957]
[1728568863755,0.002,61066.0,61065.0,0.083957]
[1728568865755,0.0723,61079.0,61074.0,0.081945]
[1728568865953,0.081947,61075.0,61074.0,0.081945]
[1728568867457,0.081947,61075.0,61074.0,0.082945]
[1728568867758,0.083947,61075.0,61074.0,0.082945]
[1728568868146,0.083947,61075.0,61074.0,0.083945]
[1728568869259,0.11901276,61075.0,61074.0,0.083945]
[1728568869657,0.03706576,61075.0,61074.0,0.083945]
[1728568870249,0.002,61075.0,61074.0,0.083945]
[1728568871255,0.083944,61075.0,61074.0,0.083945]
[1728568871460,0.002,61075.0,61074.0,0.083945]
[1728568871961,0.083944,61075.0,61074.0,0.083945]
[1728568872662,0.273944,61075.0,61074.0,0.002]
[1728568872856,0.081955,61067.0,61066.0,0.081955]
[1728568873162,0.081952,61069.0,61063.0,0.442759]
[1728568873458,0.081958,61065.0,61063.0,0.3608]
[1728568873657,0.081958,61065.0,61064.0,0.081959]
[1728568874563,0.19,61067.0,61057.0,0.081967]
[1728568874564,0.081967,61058.0,61057.0,0.081967]
[1728568874763,0.081971,61055.0,61054.0,0.081972]
[1728568875061,0.19,61059.0,61051.0,0.3608]
[1728568875062,0.081968,61058.0,61051.0,0.3608]
[1728568875258,0.19,61059.0,61055.0,0.081969]
[1728568875259,0.081968,61057.0,61055.0,0.081969]
[1728568875458,0.081968,61057.0,61056.0,0.081969]
[1728568875663,0.001,61058.0,61051.0,0.3608]
[1728568875858,0.001,61058.0,61057.0,0.081968]
[1728568876167,0.081965,61059.0,61058.0,0.081967]
[1728568877157,0.081961,61063.0,61061.0,0.081963]
[1728568877358,0.19662813,61069.0,61068.0,0.081953]
[1728568877652,0.081956,61066.0,61065.0,0.081957]
[1728568877861,0.081959,61064.0,61063.0,0.08196]
[1728568878657,0.081956,61066.0,61065.0,0.081956]
[1728568878859,0.082953,61069.0,61068.0,0.081953]
[1728568879064,0.3608,61070.0,61066.0,0.19]
[1728568879263,0.3608,61070.0,61069.0,0.271952]
[1728568879470,0.081948,61072.0,61071.0,0.081949]
[1728568879661,0.081944,61075.0,61069.0,0.19]
[1728568879863,0.081944,61075.0,61066.0,0.3608]
[1728568879864,0.08195,61071.0,61070.0,0.08195]
[1728568881264,0.08495,61071.0,61070.0,0.08295]
[1728568881574,0.08595,61071.0,61070.0,0.08395]
[1728568882260,0.004,61071.0,61070.0,0.08395]
[1728568882568,0.004,61071.0,61070.0,0.44475]
[1728568885374,0.03903976,61071.0,61070.0,0.44475]
[1728568885965,0.03901178,61071.0,61070.0,0.44475]
[1728568890471,0.03920719,61071.0,61070.0,0.44475]
[1728568891665,0.004,61071.0,61070.0,0.44475]
[1728568891865,0.004,61071.0,61070.0,0.51615]
[1728568893577,0.004,61071.0,61070.0,0.44475]
[1728568894477,0.085949,61071.0,61070.0,0.44475]
[1728568895391,0.004,61071.0,61070.0,0.44475]
[1728568895782,0.004,61071.0,61070.0,1.53599]
[1728568895979,0.082329,61087.0,61086.0,0.081929]
[1728568896180,0.082328,61087.0,61086.0,0.271929]
[1728568896378,0.0004,61087.0,61086.0,0.271929]
[1728568897178,0.0004,61087.0,61086.0,0.272929]